Cogmind - Beta 10.2 @@@ ROGUE MODE // 2021.11.19 @ 12:26:43 Player: rath Result: Destroyed by B-86 Titan with Railgun Performance ------------- Evolutions (6) 3000 Regions Visited (20) 4000 Robots Destroyed (232) 1160 Value Destroyed (10067) 10067 Prototype IDs (58) 1160 Alien Tech Used (0) 0 Bonus (7228) 7228 TOTAL SCORE: 26615 Bonus ------- High Alert Combat Kills 1796 Follower Combat Kills 574 Entered Garrisons 1600 Used RIF Installer 3000 Aligned with FarCom 300 Friendly Fire -42 Cogmind --------- Core Integrity 0/1150 Matter 24/300 Energy 99/100 System Corruption 11% Temperature Cool (9) Movement Core (50) Location -4/Garrison Parts ------- > --- POWER (1) -------- (None) > --- PROPULSION (4) --- (None) > --- UTILITY (12) ----- (None) > --- WEAPON (2) ------- (None) > --- INVENTORY (4) ---- Improved Cloaking Device Relay Coupler [Grunt] (29) HERF Cannon Improved Plasma Cutter Peak State ------------ > --- POWER ------------ Mini Fusion Reactor > --- PROPULSION ------- Flying Fortress v7 > --- UTILITY ---------- Medium Storage Unit Large Storage Unit Large Storage Unit Experimental Optical Array Improved Hacking Suite Improved Hacking Suite Experimental Hacking Suite Relay Coupler [Swarmer] Relay Coupler [Grunt] Relay Coupler [Grunt] Relay Coupler [Sentry] Advanced Dynamic Insulation System > --- WEAPON ----------- Advanced Remote Datajack Kinetic Spear > --- INVENTORY -------- Improved Flight Unit Field Propulsion Array Diametric Drive Relay Coupler [NC] Relay Coupler [NC] Relay Coupler [NC] Relay Coupler [NC] Relay Coupler [NC] Relay Coupler [NC] Relay Coupler [Grunt] Relay Coupler [Grunt] Relay Coupler [Demolisher] HERF Cannon Cooled Plasma Cannon Hypervelocity Coil Gun Hypervelocity Gauss Cannon Hypervelocity Gauss Cannon Tiamat Missile Launcher Improved Plasma Cutter [Rating: 112] Favorites ----------- Power Ion Engine Engine Ion Engine Power Core Micro Fission Core Reactor Mini Fusion Reactor Propulsion Light Treads Treads Light Treads Leg Aluminum Leg Wheel Armored Wheel Hover Unit Gravmag System Flight Unit Flying Fortress v7 Utility Large Storage Unit Device Improved Heat Sink Storage Large Storage Unit Processor Experimental Optical Array Hackware Relay Coupler [Grunt] Protection Improved Light Armor Plating Weapon Flak Gun Energy Gun Medium Laser Energy Cannon EM Pulse Cannon Ballistic Gun Flak Gun Ballistic Cannon Hypervelocity Gauss Cannon Launcher Mini Grenade Launcher Special Weapon Advanced Remote Datajack Impact Weapon Impact Mace Slashing Weapon Scythe Piercing Weapon Kinetic Spear Build | -11 -10 -10 -10 -9 -8 -8 -7 -7 -7 -7 -6 -6 -6 -6 -5 -5 -4 -4 -4 -4 ------- Run | Scr Mat Min Exi Min Mat Gar Fac Gar Fac Gar Fac Gar Fac Gar Fac Gar Fac Gar Fac Gar Slots Evolved 12 | . . . . . 4 . 2 . . . 2 . . . 2 . 2 . . . Power . | . . . . . . . . . . . . . . . . . . . . . Propulsion 2 | . . . . . . . 1 . . . 1 . . . . . . . . . Utility 10 | . . . . . 4 . 1 . . . 1 . . . 2 . 2 . . . Weapon . | . . . . . . . . . . . . . . . . . . . . . Parts Attached 316 | . 7 9 4 3 33 13 14 10 24 17 69 2 1 . 24 1 28 18 37 2 Power 24 | . . 1 . 1 2 2 1 . 4 . 4 . . . 3 . 5 . 1 . Engine 11 | . . 1 . 1 1 1 1 . 4 . 2 . . . . . . . . . Core 11 | . . . . . 1 1 . . . . 1 . . . 3 . 4 . 1 . Reactor 2 | . . . . . . . . . . . 1 . . . . . 1 . . . Propulsion 56 | . 2 2 . . 8 3 5 2 5 7 19 . . . . . . . 3 . Treads 20 | . 1 1 . . 3 2 3 2 3 2 3 . . . . . . . . . Leg 10 | . . . . . . . . . . 3 7 . . . . . . . . . Wheel 17 | . 1 1 . . 3 . 2 . 1 2 7 . . . . . . . . . Hover 1 | . . . . . . . . . . . 1 . . . . . . . . . Flight 8 | . . . . . 2 1 . . 1 . 1 . . . . . . . 3 . Utility 82 | . 4 . 4 . 10 1 3 1 4 1 14 . 1 . 9 1 7 9 13 . Device 13 | . . . . . 4 . 1 1 . . 1 . . . 1 . 2 . 3 . Storage 20 | . 4 . 4 . 5 . 1 . . . 1 . 1 . 3 . . . 1 . Processor 4 | . . . . . . . . . 1 . 2 . . . 1 . . . . . Hackware 22 | . . . . . . . . . . 1 3 . . . 3 . 3 7 5 . Protection 23 | . . . . . 1 1 1 . 3 . 7 . . . 1 1 2 2 4 . Artifact . | . . . . . . . . . . . . . . . . . . . . . Weapon 154 | . 1 6 . 2 13 7 5 7 11 9 32 2 . . 12 . 16 9 20 2 Energy Gun 6 | . . . . . 1 . 2 1 . . 2 . . . . . . . . . Energy Cannon 19 | . . . . . 2 2 1 . . . 4 . . . . . 3 2 5 . Ballistic Gun 47 | . 1 2 . 2 8 2 1 4 8 3 9 . . . 3 . . . 4 . Ballistic Cannon 11 | . . 1 . . . . . . . . . . . . 3 . 1 2 4 . Launcher 28 | . . 3 . . 1 3 1 2 2 3 9 1 . . . . 1 1 . 1 Special Weapon 21 | . . . . . . . . . . 2 2 1 . . 4 . 4 3 4 1 Impact Weapon 7 | . . . . . . . . . . . 1 . . . 2 . 4 . . . Slashing Weapon 8 | . . . . . 1 . . . 1 1 5 . . . . . . . . . Piercing Weapon 7 | . . . . . . . . . . . . . . . . . 3 1 3 . Special Melee Weapon . | . . . . . . . . . . . . . . . . . . . . . Unidentified Prototypes 17 | . . . . . 3 . . . 3 . 3 1 . . 3 . 3 . 1 . Parts Lost 78 | . . 7 . 2 4 2 4 4 3 4 30 2 . . 1 2 1 . 8 4 Power 7 | . . 1 . 1 1 . . 1 . . 2 . . . . . . . 1 . Propulsion 32 | . . 2 . . 1 1 1 1 2 3 18 . . . . . . . 1 2 Utility 11 | . . . . . 1 . 1 1 . . 1 . . . 1 1 1 . 2 2 Weapon 28 | . . 4 . 1 1 1 2 1 1 1 9 2 . . . 1 . . 4 . Highest Loss Streak 10 | . . 3 . 2 3 1 3 2 2 3 10 1 . . 1 2 1 . 6 4 Average Slot Usage (%) 88 | . 98 92 85 88 90 97 97 91 95 96 83 79 73 73 72 81 80 83 85 78 Engine 5 | . 14 13 14 13 3 6 7 4 6 7 3 . . . . . . . . . Core 1 | . . . . . 4 2 . . . . 1 6 6 6 4 5 3 . 2 4 Treads 7 | . 13 13 14 14 8 13 15 14 14 3 1 . . . . . . . . . Leg 1 | . 1 . . . . . . . . 9 6 . . . . . . . . . Wheel 5 | . 13 13 14 14 9 4 6 7 4 5 6 . . . . . . . . . Flight 1 | . . . . . . . . . . . 1 6 6 6 5 5 5 5 8 13 Device 2 | . . . . . 8 7 . . . . . . . . . . . . . 3 Storage 33 | . 26 28 28 28 35 45 45 46 46 46 35 20 20 20 19 23 21 15 15 12 Processor 1 | . . . . . . . . . 1 . . 6 6 6 5 5 5 5 5 4 Hackware 9 | . . . . . . . . . . 4 7 20 20 20 20 23 30 34 37 30 Protection 2 | . . . . . 2 . 5 1 5 2 3 6 6 6 4 4 3 5 1 . Energy Gun 1 | . 14 . . . . . 5 4 . . . . . . . . . . . . Energy Cannon 1 | . . . . . 1 6 4 . . . . . . . . . 1 . . . Ballistic Gun 7 | . 14 11 . 8 15 7 4 9 14 8 6 . . . 1 10 1 . 1 . Launcher 1 | . . 7 14 9 . 3 . . . 2 . 6 6 6 2 . . . . . Naked Turns 8 | . . . . . . . . . . . . . . . . . . . . 8 Heaviest Build 178 | 12 56 59 54 55 142 148 166 164 170 173 178 67 64 64 69 65 70 72 74 60 Greatest Support 81 | 20 20 20 10 10 20 40 16 40 63 30 81 72 72 72 72 72 72 72 72 37 Greatest Overweight (x) 53 | . 2 5 5 5 11 48 53 13 6 16 16 . . . . . . . 1 2 Average Overweight (x) 3 | . . 4 4 4 8 6 12 7 3 9 4 . . . . . . . . . Largest Inventory Capacity 46 | 6 18 18 18 18 40 40 46 46 46 46 46 22 22 22 22 20 20 20 20 20 Average Capacity 31 | 6 13 18 17 18 31 40 45 46 46 46 40 22 22 22 20 20 20 20 20 18 Most Carried 46 | 6 12 14 18 18 35 40 42 43 46 46 46 22 22 22 22 20 20 20 20 15 Average Carried 29 | 6 9 11 14 17 28 37 39 40 45 45 38 21 21 22 19 19 19 19 17 13 Final Capacity 46 | 6 18 18 18 18 40 40 46 46 46 46 22 22 22 22 20 20 20 20 20 4 Final Carried 46 | 6 12 12 18 16 35 39 42 43 46 45 22 21 22 22 20 19 20 20 15 4 Class Distribution -------------------- 43% | Hauler-Mutant 22% | Botlord-Mutant 19% | Bothacker-Mutant 14% | Mutant Dominant Class ---------------- Mutant | -10/Materials Mutant | -10/Mines Mutant | -10/Exiles Mutant | -9/Mines Hauler-Mutant | -8/Materials Hauler-Mutant | -8/Garrison Hauler-Mutant | -7/Factory Hauler-Mutant | -7/Garrison Hauler-Mutant | -7/Factory Bothacker-Mutant | -7/Garrison Bothacker-Mutant | -6/Factory Bothacker-Mutant | -6/Garrison Hauler-Mutant | -6/Factory Hauler-Mutant | -6/Garrison Botlord-Mutant | -5/Factory Botlord-Mutant | -5/Garrison Botlord-Mutant | -4/Factory Botlord-Mutant | -4/Garrison Botlord-Mutant | -4/Factory Botlord-Mutant | -4/Garrison Resources | -11 -10 -10 -10 -9 -8 -8 -7 -7 -7 -7 -6 -6 -6 -6 -5 -5 -4 -4 -4 -4 ----------- Run | Scr Mat Min Exi Min Mat Gar Fac Gar Fac Gar Fac Gar Fac Gar Fac Gar Fac Gar Fac Gar Matter Collected 7305 | 206 77 244 . 88 728 543 181 357 663 462 1036 . . . 703 . 676 637 688 16 Remotely . | . . . . . . . . . . . . . . . . . . . . . Salvage Created 10295 | 84 239 230 . 130 991 650 360 576 876 664 2793 . . . 581 . 800 503 766 52 Parts 507 | . 19 13 . 9 67 38 14 19 49 22 115 . . . 24 . 40 17 54 7 Haulers Intercepted 6 | . 1 . . . 2 . . . . . 2 . . . . . . . 1 . Recyclers Shooed 8 | . . 1 . 1 . . . . 1 . 5 . . . . . . . . . Parts Field Recycled . | . . . . . . . . . . . . . . . . . . . . . Retrieved Matter . | . . . . . . . . . . . . . . . . . . . . . Parts Self-Destructed . | . . . . . . . . . . . . . . . . . . . . . Prevented . | . . . . . . . . . . . . . . . . . . . . . Kills | -11 -10 -10 -10 -9 -8 -8 -7 -7 -7 -7 -6 -6 -6 -6 -5 -5 -4 -4 -4 -4 ------- Run | Scr Mat Min Exi Min Mat Gar Fac Gar Fac Gar Fac Gar Fac Gar Fac Gar Fac Gar Fac Gar Combat Hostiles Destroyed 209 | . 8 22 . 3 22 24 7 19 16 15 33 . . . 3 . 11 10 10 6 Melee 13 | . . . . . . . . . . . 6 . . . . . 3 1 3 . Guns 80 | . 8 5 . 3 16 3 3 6 16 5 10 . . . 2 . 1 . 2 . Cannons 23 | . . 1 . . . 5 1 . . . 2 . . . 1 . 2 6 5 . AOE 91 | . . 16 . . 6 15 3 13 . 10 15 . . . . . 4 3 . 6 Classes Destroyed 16 | 1 3 3 . . 4 1 . 1 . . 2 . . . . . . 1 . . Worker 9 | . . 3 . . 1 . . . . . 4 . . . 1 . . . . . Builder 11 | . . . . . 1 . . . . . 8 . . . . . . . 2 . Tunneler 1 | . . 1 . . . . . . . . . . . . . . . . . . Hauler 6 | . 1 . . . 2 . . . . . 2 . . . . . . . 1 . Recycler 11 | 1 . . . . 1 . . . . . 4 . . . 3 . 2 . . . Watcher 2 | . . . . . 1 . . . . . 1 . . . . . . . . . Swarmer 66 | . 6 3 . . 10 11 . 12 1 10 . . . . . . 4 3 . 6 Grunt 62 | . 2 2 . 3 7 9 3 5 7 3 17 . . . 1 . . 3 . . Brawler 4 | . . . . . . . . . . . 3 . . . . . . 1 . . Duelist 8 | . . . . . . 2 . 1 2 . 2 . . . . . . 1 . . Protector 1 | . . . . . . . . . . . 1 . . . . . . . . . Sentry 22 | . . . . . 4 2 4 . 4 1 3 . . . . . 2 . 2 . Hunter 6 | . . . . . 1 . . . . . 3 . . . . . . 1 1 . Programmer 22 | . . . . . . . . 1 2 1 4 . . . 2 . 5 . 7 . Behemoth 1 | . . . . . . . . . . . . . . . . . . 1 . . Assembled 17 | . . 17 . . . . . . . . . . . . . . . . . . Best Kill Streak 12 | 1 3 11 . 3 7 4 3 12 3 7 9 . . . 3 . 4 3 3 6 Combat Bots Only 12 | . 3 8 . 3 6 4 3 12 3 7 5 . . . 1 . 4 3 2 6 Max Kills in Single Turn 9 | 1 1 7 . 1 4 3 3 5 1 2 9 . . . 1 . 2 3 2 4 Gunslinging 1 | . . . . . 1 . . . . . . . . . . . . . . . Exploded 5 | . . 5 . . 2 3 3 5 . 2 3 . . . . . 2 3 . 4 Melee 1 | . . . . . . . . . . . 1 . . . . . 1 1 1 . Uniques/NPCs Destroyed . | . . . . . . . . . . . . . . . . . . . . . Combat | -11 -10 -10 -10 -9 -8 -8 -7 -7 -7 -7 -6 -6 -6 -6 -5 -5 -4 -4 -4 -4 -------- Run | Scr Mat Min Exi Min Mat Gar Fac Gar Fac Gar Fac Gar Fac Gar Fac Gar Fac Gar Fac Gar Damage Taken 16812 | . 269 754 . 166 1077 902 743 852 1380 1548 4025 130 60 36 612 505 690 760 1381 922 Core 2948 | . 46 53 . 83 88 140 70 98 147 251 530 16 20 . 210 32 139 114 332 579 Absorbed by Shields 164 | . . . . . . . . . . . . 12 . . . 112 . 40 . . Core Remaining (%) 52 | 100 . . . 27 . 58 . . . 19 . . . 33 . 75 . . . . Volleys Fired 614 | 6 17 29 . 10 82 33 18 56 51 30 108 2 . . 33 . 22 46 66 5 Largest 2 | 2 2 2 . 2 2 2 2 2 2 2 2 1 . . 2 . 2 2 2 1 Hottest 193 | 70 70 70 . 40 126 126 118 105 56 67 150 30 . . 122 . 193 122 96 50 Shots Fired 951 | 12 34 48 . 19 158 53 32 76 102 42 148 2 . . 45 1 33 54 87 5 Gun 638 | 12 34 26 . 18 146 26 17 65 102 26 118 . . . 11 1 8 . 28 . Cannon 152 | . . 11 . . 9 17 12 . . . 9 . . . 13 . 14 30 37 . Launcher 75 | . . 11 . 1 3 10 3 11 . 12 17 . . . . . 3 1 . 3 Special 86 | . . . . . . . . . . 4 4 2 . . 21 . 8 23 22 2 Kinetic 631 | 6 17 36 . 18 145 26 10 23 102 26 112 . . . 24 1 16 20 49 . Thermal 114 | 6 17 1 . . 1 . 7 42 . . 15 . . . . . 1 8 16 . Explosive 57 | . . 11 . 1 3 10 3 11 . 8 3 . . . . . 3 1 . 3 Electromagnetic 63 | . . . . . 9 17 12 . . 4 14 . . . . . 5 2 . . Robot Hit Streak 21 | 3 6 6 . 9 21 6 15 15 11 9 21 1 . . 9 . 15 15 9 3 Robot Miss Streak 8 | 2 2 3 . 3 4 6 1 6 6 8 4 1 . . 3 . 2 2 5 1 Penetration Max 1 | . . . . . . . . . . . 1 . . . 1 . 1 1 1 . Secondary Targets 9 | . 1 . . . 4 . . 1 1 . 2 . . . . . . . . . Max Gunslinging Chain 1 | . 1 . . . 1 . . 1 1 . 1 . . . . . . . . . Shots Hit Robots 744 | 9 19 31 . 14 117 23 28 56 92 41 135 1 . . 30 . 40 35 70 3 Core Hits 548 | 2 13 43 . 8 47 33 18 58 94 39 125 . . . 8 . 16 16 21 7 Critical Hits 38 | . . 1 . . . . 1 . . . 1 . . . 7 . 8 7 13 . Critical Kills 18 | . . 1 . . . . 1 . . . 1 . . . 3 . 3 3 6 . Critical Parts Destroyed 19 | . . . . . . . . . . . . . . . 4 . 5 3 7 . Melee Attacks 103 | . . . . . 2 . . . . 19 37 . . . 3 . 28 3 11 . Thermal 4 | . . . . . . . . . . . 4 . . . . . . . . . Impact 13 | . . . . . . . . . . . 4 . . . 3 . 6 . . . Slashing 50 | . . . . . 2 . . . . 19 29 . . . . . . . . . Piercing 36 | . . . . . . . . . . . . . . . . . 22 3 11 . Sneak Attacks 9 | . . . . . . . . . . . 4 . . . 2 . 2 . 1 . Combat Hostiles 1 | . . . . . . . . . . . . . . . . . . . 1 . Follow-up Attacks 8 | . . . . . . . . . . . 6 . . . . . 2 . . . Damage Inflicted 25444 | 91 226 1301 . 144 2253 1848 1184 2597 1548 2931 6354 . . . 409 . 1636 902 1363 657 Guns 8191 | 91 226 190 . 94 1641 236 252 979 1548 430 2170 . . . 87 . 75 . 172 . Cannons 2569 | . . 76 . . 93 324 220 . . . 183 . . . 95 . 323 497 758 . Explosions 11061 | . . 1035 . 50 475 1288 712 1618 . 1216 3095 . . . 30 . 525 362 . 655 Melee 3574 | . . . . . . . . . . 1285 906 . . . 197 . 713 43 430 . Ramming 49 | . . . . . 44 . . . . . . . . . . . . . 3 2 Kinetic 7865 | 41 57 253 . 94 1641 236 127 261 1548 430 2084 . . . 182 . 167 258 486 . Thermal 3743 | 50 169 13 . . 95 . 239 718 . 67 1677 . . . . . 70 201 444 . Explosive 8196 | . . 1035 . 50 380 1288 598 1618 . 878 807 . . . . . 525 362 . 655 Electromagnetic 2017 | . . . . . 93 324 220 . . 271 880 . . . 30 . 161 38 . . Impact 416 | . . . . . . . . . . . 27 . . . 197 . 192 . . . Slashing 2164 | . . . . . . . . . . 1285 879 . . . . . . . . . Piercing 994 | . . . . . . . . . . . . . . . . . 521 43 430 . Highest Corruption 14 | . 1 2 2 2 5 5 . 1 4 6 4 5 5 5 9 9 4 4 14 11 Average Corruption 4 | . 1 1 2 2 4 5 . 1 2 5 3 4 5 5 5 9 3 4 7 11 Corruption Purged 4 | . . . . . . . . . . . . . . . . . . . 4 . Effects 332 | . 8 5 7 4 51 54 . 2 25 31 32 3 2 1 26 9 12 21 36 3 Message Errors 76 | . 4 . 4 2 14 14 . 2 7 5 6 1 1 . 6 3 2 2 3 . Matter Fused 70 | . . . . . 11 17 . . 5 7 8 2 . 1 2 . 7 5 5 . Heat Flow Errors 39 | . . . 1 . 7 6 . . 3 4 2 . . . 3 2 1 3 7 . Energy Discharges 41 | . 2 2 1 . 2 7 . . 6 4 1 . . . 7 2 . 5 2 . Parts Rejected 2 | . . . . . . 1 . . . . . . . . . . . . 1 . Data Loss (minor) 42 | . 2 2 1 1 8 3 . . 3 3 7 . . . 5 1 . 2 4 . Data Loss (major) 8 | . . . . . 2 3 . . . . . . 1 . 1 . . . 1 . Misfires 5 | . . . . . 2 . . . . 1 . . . . 1 1 . . . . Alerts 3 | . . . . . . . . . . . . . . . . . . . 1 2 Misdirections 4 | . . . . . . . . . . . . . . . . . . . 4 . Targeting Errors 33 | . . 1 . 1 4 2 . . 1 4 6 . . . . . 2 3 8 1 Weapon Failures 9 | . . . . . 1 1 . . . 3 2 . . . 1 . . 1 . . Overload Shots 1 | . . . . . . . . . . . . . . . . . 1 . . . Overflow Damage 1224 | . . 34 . . 8 98 23 148 . 212 533 . . . 36 . 72 29 7 24 Projectiles 1 | . . . . . 1 . . . . . . . . . . . . . . . Explosions 807 | . . 34 . . 6 98 23 148 . 115 279 . . . . . 51 29 . 24 Melee 416 | . . . . . 1 . . . . 97 254 . . . 36 . 21 . 7 . Knockbacks 7 | . . . . . . . . . . . . . . . 1 . 6 . . . Impact 2 | . . . . . . . . . . . . . . . . . 2 . . . Kinetic 5 | . . . . . . . . . . . . . . . 1 . 4 . . . Secondary . | . . . . . . . . . . . . . . . . . . . . . Self-Inflicted Damage 1065 | . . 216 . 48 59 171 . 90 . 39 318 . . . . . 103 . 1 20 Shots 28 | . . 6 . 1 1 4 . 2 . 3 8 . . . . . 2 . . 1 Rammed 5 | . . . . . 3 . . . . . . . . . . . . . 1 1 Targets Rammed 5 | . . . . . 3 . . . . . . . . . . . . . 1 1 Kicked . | . . . . . . . . . . . . . . . . . . . . . Crushed . | . . . . . . . . . . . . . . . . . . . . . Highest Temperature 405 | 100 178 69 112 12 224 203 152 405 186 220 263 18 . . 236 195 243 206 248 34 Average Temperature 66 | 44 60 27 62 5 65 45 67 174 30 52 53 13 . . 58 86 68 75 87 20 Received Heat Transfer 3343 | . 87 262 . 66 234 288 234 189 351 291 984 27 27 . 21 12 18 60 111 81 Effects 2 | . . . . . . . . 2 . . . . . . . . . . . . Interference 2 | . . . . . . . . 2 . . . . . . . . . . . . Siege Activations . | . . . . . . . . . . . . . . . . . . . . . Robots Corrupted 2 | . . . . . . 1 . . . . . . . . . . 1 . . . Combat Hostiles 2 | . . . . . . 1 . . . . . . . . . . 1 . . . Parts Fried 14 | . . . . . . 6 . . . 1 . . . . 3 . 4 . . . Impact Corruptions 4 | . . . . . 1 . . . . . . . . . 2 . 1 . . . Robots Melted . | . . . . . . . . . . . . . . . . . . . . . Combat Hostiles . | . . . . . . . . . . . . . . . . . . . . . Parts Melted 9 | 1 . . . . . . . . . . 3 . . . . . . 2 3 . Heat Transferred 5163 | 148 481 37 . . 150 . 359 1461 . 100 1497 . . . . . 80 300 550 . Parts Sabotaged 2 | . . . . . . . . . . . 2 . . . . . . . . . Parts Stolen . | . . . . . . . . . . . . . . . . . . . . . Parts Stripped . | . . . . . . . . . . . . . . . . . . . . . Power Chain Reactions 6 | . . . . . 1 . 1 . . 1 3 . . . . . . . . . Missiles Intercepted . | . . . . . . . . . . . . . . . . . . . . . Alert | -11 -10 -10 -10 -9 -8 -8 -7 -7 -7 -7 -6 -6 -6 -6 -5 -5 -4 -4 -4 -4 ------- Run | Scr Mat Min Exi Min Mat Gar Fac Gar Fac Gar Fac Gar Fac Gar Fac Gar Fac Gar Fac Gar Peak Influence 1527 | 5 215 120 . 60 346 1527 992 1012 651 614 1009 611 362 268 245 89 270 564 624 194 Initial 801 | . 3 25 . . 23 108 801 554 531 182 322 591 320 253 140 74 35 189 278 10 Average 394 | 2 80 58 . 15 179 821 899 761 330 473 754 585 337 256 125 75 93 466 332 64 Maximum Alert Level 4 | . 1 . . . 1 4 3 3 2 2 3 2 1 1 1 . 1 2 2 . Low Security (%) 37 | 100 83 100 . 100 54 1 . . 27 11 . . . . 86 100 81 2 25 100 Level 1 23 | . 16 . . . 45 20 . . 37 23 17 . 100 100 13 . 18 20 30 . Level 2 17 | . . . . . . 17 . 37 34 65 . 100 . . . . . 77 43 . Level 3 18 | . . . . . . 32 100 62 . . 82 . . . . . . . . . Level 4 3 | . . . . . . 27 . . . . . . . . . . . . . . Level 5 . | . . . . . . . . . . . . . . . . . . . . . High Security . | . . . . . . . . . . . . . . . . . . . . . Max Security . | . . . . . . . . . . . . . . . . . . . . . Squads Dispatched 37 | . 1 . . . 2 . 4 . 3 . 12 . 1 . 5 . 4 . 5 . Investigation 8 | . 1 . . . 2 . . . . . 2 . 1 . . . 1 . 1 . Extermination 12 | . . . . . . . . . 3 . 2 . . . 2 . 3 . 2 . Reinforcement 8 | . . . . . . . . . . . 3 . . . 3 . . . 2 . Assault 5 | . . . . . . . 1 . . . 4 . . . . . . . . . Garrison 4 | . . . . . . . 3 . . . 1 . . . . . . . . . Intercept . | . . . . . . . . . . . . . . . . . . . . . Construction Impeded 1 | . . . . . . . . . . . 1 . . . . . . . . . Haulers Reinforced 4 | . . . . . . . . . . . 2 . . . 1 . . . 1 . Alert ID Control Effect 9 | . . . . . . . . . . . . . . . . . . 5 4 . Stealth | -11 -10 -10 -10 -9 -8 -8 -7 -7 -7 -7 -6 -6 -6 -6 -5 -5 -4 -4 -4 -4 --------- Run | Scr Mat Min Exi Min Mat Gar Fac Gar Fac Gar Fac Gar Fac Gar Fac Gar Fac Gar Fac Gar Distress Signals 15 | . . 1 . . 6 . . . . . 1 . 2 . 2 . 1 2 . . Communications Jammed . | . . . . . . . . . . . . . . . . . . . . . Distress Signals . | . . . . . . . . . . . . . . . . . . . . . Times Spotted 369 | . 18 22 . 3 46 33 14 16 18 20 53 6 6 4 28 3 18 28 19 14 Peak Tracking Total 11 | . 4 8 . 3 8 4 4 10 3 6 6 9 6 4 7 3 6 4 4 11 Tactical Retreats 36 | . 1 . . . 9 4 5 1 . 3 3 1 . . 4 . . 3 1 1 Traps | -11 -10 -10 -10 -9 -8 -8 -7 -7 -7 -7 -6 -6 -6 -6 -5 -5 -4 -4 -4 -4 ------- Run | Scr Mat Min Exi Min Mat Gar Fac Gar Fac Gar Fac Gar Fac Gar Fac Gar Fac Gar Fac Gar Traps Triggered 41 | . 1 . . . 5 8 . 3 . 3 2 5 . 1 2 3 1 5 2 . Indirectly . | . . . . . . . . . . . . . . . . . . . . . Trap Hack Attempts . | . . . . . . . . . . . . . . . . . . . . . Triggered . | . . . . . . . . . . . . . . . . . . . . . Disarmed . | . . . . . . . . . . . . . . . . . . . . . Reprogrammed . | . . . . . . . . . . . . . . . . . . . . . Reused . | . . . . . . . . . . . . . . . . . . . . . Traps Extracted . | . . . . . . . . . . . . . . . . . . . . . Installed . | . . . . . . . . . . . . . . . . . . . . . Triggered . | . . . . . . . . . . . . . . . . . . . . . Machines | -11 -10 -10 -10 -9 -8 -8 -7 -7 -7 -7 -6 -6 -6 -6 -5 -5 -4 -4 -4 -4 ---------- Run | Scr Mat Min Exi Min Mat Gar Fac Gar Fac Gar Fac Gar Fac Gar Fac Gar Fac Gar Fac Gar Machines Disabled 45 | . . . . . 2 3 . . . . 24 . . . 2 . . 4 10 . Max in Single Turn 20 | . . . . . 2 1 . . . . 20 . . . 2 . . 1 2 . Garrison Access 1 | . . . . . . . . . . . 1 . . . . . . . . . Garrison Relay 6 | . . . . . . 3 . . . . . . . . . . . 3 . . Machines Sabotaged . | . . . . . . . . . . . . . . . . . . . . . Garrisons Compromised . | . . . . . . . . . . . . . . . . . . . . . Overloaded Fab Kills . | . . . . . . . . . . . . . . . . . . . . . Fab Network Shutdowns . | . . . . . . . . . . . . . . . . . . . . . Hacking | -11 -10 -10 -10 -9 -8 -8 -7 -7 -7 -7 -6 -6 -6 -6 -5 -5 -4 -4 -4 -4 --------- Run | Scr Mat Min Exi Min Mat Gar Fac Gar Fac Gar Fac Gar Fac Gar Fac Gar Fac Gar Fac Gar Machines Accessed 73 | . 5 . 2 . 11 . 2 . 10 . 7 . 3 . 10 . 15 . 8 . Terminals 39 | . 5 . . . 9 . . . 7 . 3 . 2 . 5 . 6 . 2 . Fabricators 5 | . . . . . . . . . 1 . 1 . . . 1 . 1 . 1 . Repair Stations 9 | . . . . . 1 . 1 . . . 2 . . . 1 . 3 . 1 . Recycling Units 5 | . . . . . . . . . . . . . . . 1 . 2 . 2 . Scanalyzers 5 | . . . . . . . . . 1 . . . . . 1 . 2 . 1 . Garrison Access 8 | . . . . . 1 . 1 . 1 . 1 . 1 . 1 . 1 . 1 . Total Hacks 208 | . 20 . 2 . 37 . 3 . 27 . 14 . 5 . 29 . 51 . 20 . Successful 122 | . 10 . 2 . 19 . 2 . 12 . 5 . 2 . 14 . 43 . 13 . Failed 86 | . 10 . . . 18 . 1 . 15 . 9 . 3 . 15 . 8 . 7 . Catastrophic 10 | . 1 . . . 5 . . . 4 . . . . . . . . . . . Database Lockouts . | . . . . . . . . . . . . . . . . . . . . . Manual 87 | . 18 . 1 . 20 . . . 12 . 3 . 4 . 11 . 15 . 3 . Terminals 127 | . 20 . . . 29 . . . 19 . 7 . 4 . 17 . 24 . 7 . Fabricators 10 | . . . . . . . . . 2 . 1 . . . 2 . 3 . 2 . Repair Stations 27 | . . . . . 7 . 2 . . . 5 . . . 2 . 9 . 2 . Recycling Units 13 | . . . . . . . . . . . . . . . 4 . 7 . 2 . Scanalyzers 18 | . . . . . . . . . 5 . . . . . 2 . 7 . 4 . Garrison Access 11 | . . . . . 1 . 1 . 1 . 1 . 1 . 2 . 1 . 3 . Terminal Hacks 41 | . 6 . 2 . 10 . . . 4 . 2 . . . 4 . 10 . 3 . Record 6 | . . . 1 . . . . . . . . . . . . . 4 . 1 . Part Schematic 2 | . 1 . . . . . . . 1 . . . . . . . . . . . Robot Analysis 5 | . 2 . . . 2 . . . . . . . . . 1 . . . . . Prototype ID Bank 4 | . . . . . 3 . . . . . . . . . . . 1 . . . Branch Access Points 1 | . . . . . 1 . . . . . . . . . . . . . . . Terminal Index 6 | . 1 . . . 1 . . . 1 . 1 . . . 1 . 1 . . . Repair Station Index 1 | . . . . . . . . . . . . . . . . . 1 . . . Unreport Threat 4 | . . . . . 1 . . . 1 . 1 . . . . . . . 1 . Locate Traps 4 | . . . . . . . . . 1 . . . . . 1 . 2 . . . Recall Extermination 1 | . . . . . . . . . . . . . . . . . . . 1 . Hauler Manifests 2 | . 1 . . . . . . . . . . . . . . . 1 . . . Zone Layout 4 | . 1 . . . 2 . . . . . . . . . 1 . . . . . EX-Prototype ID Bank 1 | . . . 1 . . . . . . . . . . . . . . . . . Fabricator Hacks 6 | . . . . . . . . . . . . . . . 2 . 2 . 2 . Network Status 1 | . . . . . . . . . . . . . . . . . 1 . . . Load Schematic 3 | . . . . . . . . . . . . . . . 1 . 1 . 1 . Build 2 | . . . . . . . . . . . . . . . 1 . . . 1 . Repair Station Hacks 18 | . . . . . 4 . 1 . . . 2 . . . 2 . 7 . 2 . Scan Component 11 | . . . . . 2 . 1 . . . 2 . . . 1 . 4 . 1 . Repair 7 | . . . . . 2 . . . . . . . . . 1 . 3 . 1 . Recycling Unit Hacks 11 | . . . . . . . . . . . . . . . 2 . 7 . 2 . Recycle Component 3 | . . . . . . . . . . . . . . . . . 3 . . . Process 2 | . . . . . . . . . . . . . . . 1 . 1 . . . Report Inventory 4 | . . . . . . . . . . . . . . . . . 2 . 2 . Retrieve Matter 2 | . . . . . . . . . . . . . . . 1 . 1 . . . Scanalyzer 14 | . . . . . . . . . 5 . . . . . . . 7 . 2 . Insert Component 7 | . . . . . . . . . 3 . . . . . . . 3 . 1 . Analyze 7 | . . . . . . . . . 2 . . . . . . . 4 . 1 . Garrison Access Hacks 10 | . . . . . 1 . 1 . 1 . 1 . 1 . 2 . 1 . 2 . Unlock Access 8 | . . . . . 1 . 1 . 1 . 1 . 1 . 1 . 1 . 1 . Coupler Status 2 | . . . . . . . . . . . . . . . 1 . . . 1 . Unauthorized Hacks 22 | . 4 . . . 4 . . . 2 . . . 1 . 2 . 9 . . . Terminals 22 | . 4 . . . 4 . . . 2 . . . 1 . 2 . 9 . . . Track 7 | . 1 . . . 1 . . . . . . . . . . . 5 . . . Assimilate 1 | . . . . . . . . . . . . . . . . . 1 . . . Botnet 11 | . 2 . . . 2 . . . 2 . . . 1 . 2 . 2 . . . Operators 3 | . 1 . . . 1 . . . . . . . . . . . 1 . . . Fabricators . | . . . . . . . . . . . . . . . . . . . . . Repair Stations . | . . . . . . . . . . . . . . . . . . . . . Recycling Units . | . . . . . . . . . . . . . . . . . . . . . Scanalyzers . | . . . . . . . . . . . . . . . . . . . . . Garrison Access . | . . . . . . . . . . . . . . . . . . . . . Data Cores Recovered . | . . . . . . . . . . . . . . . . . . . . . Used . | . . . . . . . . . . . . . . . . . . . . . Hacking Detections 60 | . 5 . . . 9 . 1 . 10 . 5 . 2 . 9 . 12 . 7 . Full Trace Events 8 | . 2 . . . 1 . . . . . 2 . 1 . . . 1 . 1 . Feedback Events 1 | . . . . . . . . . . . . . . . . . . . 1 . Corruption 1 | . . . . . . . . . . . . . . . . . . . 1 . Feedback Blocked . | . . . . . . . . . . . . . . . . . . . . . Robot Schematics Acquired . | . . . . . . . . . . . . . . . . . . . . . Robots Built . | . . . . . . . . . . . . . . . . . . . . . Matter . | . . . . . . . . . . . . . . . . . . . . . Time . | . . . . . . . . . . . . . . . . . . . . . Total Robot Build Rating . | . . . . . . . . . . . . . . . . . . . . . Part Schematics Acquired 7 | . 1 . . . . . . . 2 . . . . . . . 3 . 1 . Parts Built 2 | . . . . . . . . . . . . . . . 2 . . . . . Matter 497 | . . . . . . . . . . . . . . . 146 . . . 351 . Time 135 | . . . . . . . . . . . . . . . 73 . . . 62 . Total Part Build Rating 6 | . . . . . . . . . . . . . . . 6 . . . . . Parts Repaired 7 | . . . . . 2 . . . . . . . . . 1 . 3 . 1 . Time 336 | . . . . . 120 . . . . . . . . . 26 . 164 . 26 . Parts Recycled 3 | . . . . . . . . . . . . . . . . . 3 . . . Recycled Matter 121 | . . . . . . . . . . . . . . . 10 . 111 . . . Retrieved Matter 121 | . . . . . . . . . . . . . . . 10 . 111 . . . Retrieved Components . | . . . . . . . . . . . . . . . . . . . . . Parts Scanalyzed 5 | . . . . . . . . . 1 . . . . . . . 3 . 1 . Part Schematics Acquired 5 | . . . . . . . . . 1 . . . . . . . 3 . 1 . Parts Damaged . | . . . . . . . . . . . . . . . . . . . . . Bothacking | -11 -10 -10 -10 -9 -8 -8 -7 -7 -7 -7 -6 -6 -6 -6 -5 -5 -4 -4 -4 -4 ------------ Run | Scr Mat Min Exi Min Mat Gar Fac Gar Fac Gar Fac Gar Fac Gar Fac Gar Fac Gar Fac Gar Used RIF Installer 6 | . . . . . . 1 . 1 . 1 . 1 . . . 1 . 1 . . Robot Detection 1 | . . . . . . . . . . . . 1 . . . . . . . . Watcher Feeds 1 | . . . . . . . . 1 . . . . . . . . . . . . Alert ID Control 1 | . . . . . . . . . . 1 . . . . . . . . . . Program Shield 1 | . . . . . . . . . . . . . . . . 1 . . . . Autoassimilate 1 | . . . . . . . . . . . . . . . . . . 1 . . Robots Hacked 42 | . . . . . . . . . . 1 2 1 . . 11 . 4 15 6 2 Non-combat 20 | . . . . . . . . . . . . . . . 11 . 4 . 5 . Combat 22 | . . . . . . . . . . 1 2 1 . . . . . 15 1 2 Autoassimilated 3 | . . . . . . . . . . . . . . . . . . 3 . . Robot Hacks Applied 56 | . . . . . . . . . . 3 2 1 . . 13 . 6 13 16 2 parse_system 6 | . . . . . . . . . . 1 . . . . 1 . 1 1 1 1 find_chute 1 | . . . . . . . . . . . . . . . 1 . . . . . ignore_repairs 1 | . . . . . . . . . . . . . . . 1 . . . . . map_walls 1 | . . . . . . . . . . . . . . . 1 . . . . . randomize_corridors 1 | . . . . . . . . . . . . . . . 1 . . . . . find_fabricator 3 | . . . . . . . . . . . . . . . 1 . 1 . 1 . drop_inventory 9 | . . . . . . . . . . . . . . . 4 . 3 . 2 . find_recycling 1 | . . . . . . . . . . . . . . . 1 . . . . . purge_threat 3 | . . . . . . . . . . . . . . . . . . . 3 . find_terminals 1 | . . . . . . . . . . . . . . . . . . . 1 . locate_traps 2 | . . . . . . . . . . . . . . . . . . . 2 . block_reporting 1 | . . . . . . . . . . . . . . . . . . . 1 . summon_haulers 2 | . . . . . . . . . . . . . . . . . . . 2 . map_route 2 | . . . . . . . . . . . . . . . . . 1 . 1 . mark_security 1 | . . . . . . . . . . . . . . . 1 . . . . . link_fov 1 | . . . . . . . . . . . . . . . 1 . . . . . scatter_targeting 1 | . . . . . . . . . . . . . . . . . . . 1 . overwrite_iff 7 | . . . . . . . . . . 1 . 1 . . . . . 5 . . streamctrl_high 3 | . . . . . . . . . . . 1 . . . . . . 2 . . formatsys_low 1 | . . . . . . . . . . . . . . . . . . . 1 . formatsys_high 8 | . . . . . . . . . . 1 1 . . . . . . 5 . 1 Relay Couplers Released 29 | . . . . . . 12 . . . . 2 . . . 4 . . 11 . . Machine Destruction 25 | . . . . . . 12 . . . . 2 . . . . . . 11 . . Programmers 4 | . . . . . . . . . . . . . . . 4 . . . . . Attached 15 | . . . . . . . . . . 1 2 . . . 3 . . 7 2 . Robots Rewired 12 | . . . . . . 9 . . . . . . . . . . . 3 . . Allies Hacked 1 | . . . . . . . . . . . . 1 . . . . . . . . Hacks Repelled . | . . . . . . . . . . . . . . . . . . . . . Allies | -11 -10 -10 -10 -9 -8 -8 -7 -7 -7 -7 -6 -6 -6 -6 -5 -5 -4 -4 -4 -4 -------- Run | Scr Mat Min Exi Min Mat Gar Fac Gar Fac Gar Fac Gar Fac Gar Fac Gar Fac Gar Fac Gar Total Allies 38 | . . 2 . 3 . 9 . . . 1 2 1 . . . . 1 17 1 1 Largest Group 7 | . . 2 2 3 3 6 4 . . 1 1 1 . . . . 1 7 6 1 Highest-Rated Group 253 | . . 42 42 40 40 129 119 . . 34 47 32 . . . . 10 253 241 12 Highest-Rated Ally 49 | . . 31 31 16 16 38 38 . . 34 47 32 . . . . 10 49 47 12 Total Orders 5 | . . . . . . 2 . . . . . . . . . . . 3 . . STAY 2 | . . . . . . 1 . . . . . . . . . . . 1 . . FOLLOW 3 | . . . . . . 1 . . . . . . . . . . . 2 . . Ally Attacks 179 | . . . . . 25 43 5 . . 5 3 2 . . . . . 45 50 1 Total Damage 3829 | . . . . . 202 582 104 . . 614 114 134 . . . . . 858 1221 . Kills 34 | . . . . . 5 12 . . . 4 . . . . . . . 5 8 . Allies Corrupted . | . . . . . . . . . . . . . . . . . . . . . Allies Melted . | . . . . . . . . . . . . . . . . . . . . . Intel | -11 -10 -10 -10 -9 -8 -8 -7 -7 -7 -7 -6 -6 -6 -6 -5 -5 -4 -4 -4 -4 ------- Run | Scr Mat Min Exi Min Mat Gar Fac Gar Fac Gar Fac Gar Fac Gar Fac Gar Fac Gar Fac Gar Robot Analysis Total 5 | . 2 . . . 2 . . . . . . . . . 1 . . . . . Derelict Logs Recovered 1 | . . . . 1 . . . . . . . . . . . . . . . . Drone Launches . | . . . . . . . . . . . . . . . . . . . . . Drone Recoveries . | . . . . . . . . . . . . . . . . . . . . . Exploration | -11 -10 -10 -10 -9 -8 -8 -7 -7 -7 -7 -6 -6 -6 -6 -5 -5 -4 -4 -4 -4 ------------- Run | Scr Mat Min Exi Min Mat Gar Fac Gar Fac Gar Fac Gar Fac Gar Fac Gar Fac Gar Fac Gar Turns Passed 18593 | 36 1145 557 487 375 2455 2003 421 409 2299 945 2411 168 118 80 1210 328 1193 1003 861 89 Spaces Moved 11887 | 14 602 352 369 240 977 714 140 112 1111 381 1547 127 227 83 1746 153 1224 834 886 48 Core 17 | . . . . . . 1 1 . . . . . . . . . . . . 15 Treads 1684 | . 546 7 . . 109 415 . 61 539 7 . . . . . . . . . . Legs 115 | 14 56 . . . . . . . . 21 24 . . . . . . . . . Wheels 3936 | . . 345 369 240 868 298 139 51 572 353 701 . . . . . . . . . Hover . | . . . . . . . . . . . . . . . . . . . . . Flight 6135 | . . . . . . . . . . . 822 127 227 83 1746 153 1224 834 886 33 Fastest Speed 29 | 120 120 130 110 120 130 200 200 220 150 160 50 50 50 50 50 50 50 50 50 29 Average Speed 114 | 120 168 131 129 129 184 217 233 222 181 199 116 50 50 50 50 50 50 50 66 82 Slowest Speed 2700 | 120 200 200 130 130 290 2450 2700 240 240 600 330 50 50 50 50 50 50 50 105 179 Overloaded Moves . | . . . . . . . . . . . . . . . . . . . . . Propulsion Burnouts . | . . . . . . . . . . . . . . . . . . . . . Robots Hopped 41 | . . . . . . 1 . . . . . . 5 . 11 1 17 . 6 . Cave-ins Triggered . | . . . . . . . . . . . . . . . . . . . . . Exploration Rate (%) 44 | 3 97 65 71 63 81 78 3 39 28 73 50 25 8 30 36 33 33 76 24 23 Regions Visited 20 Branch Regions 3 Pre-discovered Areas 2 | . . . 1 1 . . . . . . . . . . . . . . . . Known Exits Taken 8 | . . . . . 1 . 1 . 1 . 1 . 1 . 1 . 1 . 1 . Unknown Exits Taken 5 | 1 1 1 1 1 . . . . . . . . . . . . . . . . Scrap Searched 1 | . . . . 1 . . . . . . . . . . . . . . . . Spaces Dug 50 | . . . . . 2 9 . 9 . . 6 . . . 1 . 10 10 3 . Terrain Destroyed 518 | . . 105 . 15 44 80 9 25 . 19 85 . . . 1 . 36 10 40 49 Melee 22 | . . . . . 2 . . . . . 6 . . . 1 . 10 . 3 . Projectile 5 | . . . . . . . . . . . . . . . . . . . 5 . AOE 491 | . . 105 . 15 42 80 9 25 . 19 79 . . . . . 26 10 32 49 Terrain Rammed . | . . . . . . . . . . . . . . . . . . . . . Walls Destroyed . | . . . . . . . . . . . . . . . . . . . . . Machines Disabled . | . . . . . . . . . . . . . . . . . . . . . Actions | -11 -10 -10 -10 -9 -8 -8 -7 -7 -7 -7 -6 -6 -6 -6 -5 -5 -4 -4 -4 -4 --------- Run | Scr Mat Min Exi Min Mat Gar Fac Gar Fac Gar Fac Gar Fac Gar Fac Gar Fac Gar Fac Gar Total 15860 | 22 704 401 375 290 1518 1124 201 195 1309 497 1954 228 225 120 2039 402 1722 1382 1058 94 Wait 2326 | 3 63 7 . 32 385 211 24 . 82 17 156 10 2 27 205 227 412 375 52 36 Move 11789 | 13 601 351 368 239 976 710 139 110 1111 379 1547 125 218 82 1723 150 1192 833 874 48 Hop 38 | . . . . . . 1 . . . . . . 4 . 11 1 15 . 6 . Pick Up 146 | . 9 5 1 3 22 13 3 5 14 4 19 . . . 22 . 12 9 5 . Fast Attach 87 | . 1 1 2 1 13 1 3 . 9 4 24 . . . 4 . 7 5 12 . Attach 77 | . 2 5 . 2 6 4 5 2 4 3 20 1 . . 4 1 8 1 8 1 Detach 36 | . . . . . 5 2 2 . 5 2 8 . . . 1 . 5 4 1 1 Swap 153 | . 4 3 2 . 14 8 6 8 11 10 25 2 1 . 16 . 13 12 17 1 Drop 113 | . 7 . 2 3 10 8 1 2 22 5 16 . . . 12 . 11 8 5 1 Fire 614 | 6 17 29 . 10 82 33 18 56 51 30 108 2 . . 33 . 22 46 66 5 Melee 94 | . . . . . 2 . . . . 19 31 . . . 3 . 25 3 11 . Ram 5 | . . . . . 3 . . . . . . . . . . . . . 1 1 Kick . | . . . . . . . . . . . . . . . . . . . . . Crush . | . . . . . . . . . . . . . . . . . . . . . Escape Stasis 286 | . . . . . . 40 . 12 . 24 . 88 . 11 5 23 . 83 . . Rewire 96 | . . . . . . 93 . . . . . . . . . . . 3 . . Trap . | . . . . . . . . . . . . . . . . . . . . . Miscellaneous . | . . . . . . . . . . . . . . . . . . . . . Route ------- -11/Scrapyard -10/Materials (discovered 5 exits: [*Mat x3] / [*Min x2]) -10/Mines (discovered 2 exits: [*Mat] / *Exi) -10/Exiles -9/Mines -8/Materials (discovered 3 exits: *Fac x2 / Gar) -8/Garrison (discovered 3 exits: *Fac x3) -7/Factory -7/Garrison -7/Factory (discovered 3 exits: *Fac / [*Low] / Gar) -7/Garrison (discovered 3 exits: *Fac x3) -6/Factory (discovered 4 exits: *Fac x2 / [*Low] / Gar) -6/Garrison -6/Factory -6/Garrison -5/Factory -5/Garrison -4/Factory (discovered 4 exits: [*Res x2] / [*Upp] / Gar) -4/Garrison (discovered 3 exits: *Fac x3) -4/Factory (discovered 4 exits: [*Res x2] / [*Ext] / Gar) -4/Garrison History --------- Turn | Location | Event 21 | -11/Scrapyard | Discovered new exit (range 3) 37 | -11/Scrapyard | Entered Materials 64 | -10/Materials | Discovered new exit (range 16) 208 | -10/Materials | Discovered new exit (range 3) 314 | -10/Materials | Build established: Mutant 410 | -10/Materials | Discovered new exit (range 6) 630 | -10/Materials | Discovered new exit (range 14) 785 | -10/Materials | Discovered new exit (range 16) 1182 | -10/Materials | Entered Mines 1202 | -10/Mines | Met a Derelict bent on vengeance 1392 | -10/Mines | Assembled infested the area 1397 | -10/Mines | Assisted by a Guerilla fighting off Assembled 1402 | -10/Mines | Discovered new exit (range 5) 1442 | -10/Mines | Destroyed 8 combat bots 1447 | -10/Mines | Lost 3 parts (2n1w) 1718 | -10/Mines | Deemed a non-threat by the Exiles lab entrance 1718 | -10/Mines | Discovered new exit (range 5) 1739 | -10/Mines | Entered Exiles 1739 | -10/Exiles | Accompanied by 2 allies 1769 | -10/Exiles | Led the pair of lost Derelicts to a safe place 1772 | -10/Exiles | Met 8R-AWN 1793 | -10/Exiles | Met EX-HEX 1907 | -10/Exiles | Met EX-DEC 1932 | -10/Exiles | Learned location of Zion (-7) 2041 | -10/Exiles | Met EX-BIN 2058 | -10/Exiles | Aligned with FarCom system 2060 | -10/Exiles | Given EX-Vault access code 2089 | -10/Exiles | Opened EX-Vault 2099 | -10/Exiles | Found Flying Fortress v7 2128 | -10/Exiles | Warned to stay clear of 0b10 Research branches 2210 | -10/Exiles | Discovered new exit (range 14) 2226 | -10/Exiles | Left Exiles lab with Flying Fortress v7 2226 | -10/Exiles | Entered Mines 2298 | -9/Mines | Found a hidden stash of uninstalled traps 2359 | -9/Mines | Learned location of Storage (-9) 2490 | -9/Mines | Core integrity fell below 50% 2552 | -9/Mines | Assisted by bots powering up and referring to "LRC-V3" 2583 | -9/Mines | Discovered new exit (range 16) 2601 | -9/Mines | Entered Materials 2601 | -8/Materials | Accompanied by 3 allies 2601 | -8/Materials | Evolved 4 slots: Utility x4 2958 | -8/Materials | Build established: Hauler-Mutant 3285 | -8/Materials | Lost 3 parts (1n1u1w) 3676 | -8/Materials | Discovered new exit (range 8) 3909 | -8/Materials | Discovered new exit (range 10) 4377 | -8/Materials | Repaired Enh. Autogun 4437 | -8/Materials | Repaired Enh. Autogun 5032 | -8/Materials | Identified exit to Garrison 5056 | -8/Materials | Entered Garrison 5200 | -8/Garrison | Triggered checkpoint 5268 | -8/Garrison | Garrison Relay disabled 5516 | -8/Garrison | Triggered checkpoint 5609 | -8/Garrison | Discovered new exit (range 8) 5628 | -8/Garrison | Triggered checkpoint 5666 | -8/Garrison | Garrison Relay disabled 5802 | -8/Garrison | Triggered checkpoint 6404 | -8/Garrison | Triggered checkpoint 6414 | -8/Garrison | Triggered checkpoint 6432 | -8/Garrison | Discovered new exit (range 15) 6436 | -8/Garrison | Triggered checkpoint 6562 | -8/Garrison | Triggered checkpoint 6651 | -8/Garrison | Discovered new exit (range 12) 6680 | -8/Garrison | Triggered checkpoint 6707 | -8/Garrison | Garrison Relay disabled 6938 | -8/Garrison | Triggered checkpoint 7048 | -8/Garrison | Installed Relay Interface Framework 7059 | -8/Garrison | Entered Factory 7059 | -7/Factory | Accompanied by 4 allies 7059 | -7/Factory | Evolved 2 slots: Propulsion x1, Utility x1 7112 | -7/Factory | Garrison activated, responded to threat 7196 | -7/Factory | Lost 3 parts (1n1u1w) 7459 | -7/Factory | First assault squad dispatched 7478 | -7/Factory | Identified exit to Garrison 7480 | -7/Factory | Entered Garrison 7491 | -7/Garrison | Expanded RIF knowledge: Patrol Navigation 7566 | -7/Garrison | Triggered checkpoint 7759 | -7/Garrison | Triggered checkpoint 7796 | -7/Garrison | Destroyed 12 combat bots 7854 | -7/Garrison | Discovered new exit (range 10) 7889 | -7/Garrison | Entered Factory 8927 | -7/Factory | Discovered new exit (range 15) 9819 | -7/Factory | Discovered new exit (range 3) 9979 | -7/Factory | Found Prototype Launcher 9979 | -7/Factory | Identified Rocket Array 10188 | -7/Factory | Identified exit to Garrison 10188 | -7/Factory | Entered Garrison 10332 | -7/Garrison | Triggered checkpoint 10378 | -7/Garrison | Destroyed 7 combat bots 10432 | -7/Garrison | Discovered new exit (range 15) 10518 | -7/Garrison | Triggered checkpoint 10518 | -7/Garrison | Triggered checkpoint 10521 | -7/Garrison | Core integrity fell below 50% 10569 | -7/Garrison | Lost 3 parts (3n) 10604 | -7/Garrison | Triggered checkpoint 10628 | -7/Garrison | Build established: Bothacker-Mutant 10858 | -7/Garrison | Triggered checkpoint 10859 | -7/Garrison | Core integrity fell below 20% 10879 | -7/Garrison | Discovered new exit (range 14) 11087 | -7/Garrison | Discovered new exit (range 9) 11122 | -7/Garrison | Expanded RIF knowledge: Alert ID Control 11133 | -7/Garrison | Entered Factory 11133 | -6/Factory | Evolved 2 slots: Propulsion x1, Utility x1 11529 | -6/Factory | Garrison activated, responded to threat 11772 | -6/Factory | Discovered new exit (range 12) 11961 | -6/Factory | Lost 10 parts (5n5w) 12533 | -6/Factory | First assault squad dispatched 12787 | -6/Factory | Lost 9 parts (1p4n1u3w) 12882 | -6/Factory | Core integrity fell below 50% 12930 | -6/Factory | Lost 3 parts (3n) 13035 | -6/Factory | Lost 4 parts (1p2n1w) 13287 | -6/Factory | Discovered new exit (range 19) 13342 | -6/Factory | Found Prototype Processor 13342 | -6/Factory | Identified Exp. Signal Interpreter 13346 | -6/Factory | Found Exp. Signal Interpreter 13388 | -6/Factory | Discovered new exit (range 21) 13500 | -6/Factory | Spotted B-75 Beast 13544 | -6/Factory | Identified exit to Garrison 13544 | -6/Factory | Entered Garrison 13638 | -6/Garrison | Spotted B-75 Beast 13664 | -6/Garrison | Triggered checkpoint 13697 | -6/Garrison | Discovered new exit (range 21) 13710 | -6/Garrison | Expanded RIF knowledge: Robot Detection 13712 | -6/Garrison | Entered Factory 13830 | -6/Factory | Identified exit to Garrison 13830 | -6/Factory | Entered Garrison 13894 | -6/Garrison | Triggered checkpoint 13905 | -6/Garrison | Discovered new exit (range 11) 13910 | -6/Garrison | Entered Factory 13910 | -5/Factory | Evolved 2 slots: Utility x2 13926 | -5/Factory | Identified exit to Garrison 14001 | -5/Factory | Build established: Hauler-Mutant 14567 | -5/Factory | Repaired Lrg. Storage Unit 14643 | -5/Factory | Found Prototype Device 14645 | -5/Factory | Identified Exp. Sensor Array 14792 | -5/Factory | Build established: Botlord-Mutant 14830 | -5/Factory | Fabricated Imp. Propulsion Shielding? 15120 | -5/Factory | Entered Garrison 15396 | -5/Garrison | Spotted B-75 Beast 15398 | -5/Garrison | Triggered checkpoint 15433 | -5/Garrison | Discovered new exit (range 22) 15446 | -5/Garrison | Expanded RIF knowledge: Program Shield 15448 | -5/Garrison | Entered Factory 15448 | -4/Factory | Evolved 2 slots: Utility x2 16005 | -4/Factory | Repaired Imp. Light Armor Plating 16019 | -4/Factory | Discovered new exit (range 3) 16220 | -4/Factory | Discovered new exit (range 11) 16316 | -4/Factory | Discovered new exit (range 14) 16498 | -4/Factory | Repaired Hyp. Coil Gun 16588 | -4/Factory | Repaired Kinetic Spear 16641 | -4/Factory | Identified exit to Garrison 16641 | -4/Factory | Entered Garrison 16666 | -4/Garrison | Triggered checkpoint 16672 | -4/Garrison | Spotted B-86 Titan 16706 | -4/Garrison | Triggered checkpoint 16726 | -4/Garrison | Discovered new exit (range 22) 16748 | -4/Garrison | Triggered checkpoint 16783 | -4/Garrison | Garrison Relay disabled 16790 | -4/Garrison | Destroyed B-86 Titan 16822 | -4/Garrison | Triggered checkpoint 16836 | -4/Garrison | Discovered new exit (range 9) 16843 | -4/Garrison | Expanded RIF knowledge: Autoassimilate 16854 | -4/Garrison | Triggered checkpoint 16868 | -4/Garrison | Garrison Relay disabled 16964 | -4/Garrison | Triggered checkpoint 17011 | -4/Garrison | Discovered new exit (range 10) 17026 | -4/Garrison | Triggered checkpoint 17066 | -4/Garrison | Garrison Relay disabled 17282 | -4/Garrison | Triggered checkpoint 17380 | -4/Garrison | Triggered checkpoint 17644 | -4/Garrison | Entered Factory 17644 | -4/Factory | Accompanied by 6 allies 17674 | -4/Factory | Found Exp. Hacking Suite 17707 | -4/Factory | Repaired Cld. Plasma Cannon 18015 | -4/Factory | Discovered new exit (range 23) 18037 | -4/Factory | Discovered new exit (range 23) 18158 | -4/Factory | System corruption reached 10% 18163 | -4/Factory | Lost 6 parts (1p1n2u2w) 18275 | -4/Factory | Core integrity fell below 50% 18295 | -4/Factory | Discovered new exit (range 14) 18505 | -4/Factory | Identified exit to Garrison 18505 | -4/Factory | Entered Garrison 18569 | -4/Garrison | Spotted B-86 Titan 18586 | -4/Garrison | Released all parts (12) 18592 | -4/Garrison | Core integrity fell below 20% 18594 | -4/Garrison | Destroyed by B-86 Titan with Railgun Last Messages --------------- 18586_ Released Relay Coupler [Grunt]. 18586_ Released Adv. Hacking Suite. 18586_ Released Imp. Flight Unit. 18586_ Released Mic. Fission Core. 18586_ Released Relay Coupler [NC]. 18586_ Released Kinetic Spear. 18586_ Released Adv. Remote Datajack. 18588_ Knocked back. 18588_ S-27 Virus system corrupted by crushing effect. 18588_ Penetrated by Slug. 18588_ Acquired 4 matter. 18588_ Slug penetrates Wall. 18589_ C-30 ARC bursts open, deploying its payload. 18589_ H-77 Assassin unfolds itself. 18589_ Slammed into B-86 Titan. 18590_ Penetrated by Slug. 18591_ Knocked back. 18591_ Penetrated by Slug. 18592_ Slug penetrates Reinforced Barrier. 18593_ Penetrated by Slug. Map ----- +----------------------------------------------------+ | ??????????????????????????????????????????###????? | | ?????????????????????????????????????????? #????? | | ??????????????????????????????????????????# #????? | | ??????????????????????????????????????????# #????? | | ??????????????????????????????????????????# #???## | | ??????????????????????????????????????????#^#???# | | ????????????????????????????????????????### ##### | | ????????????????????????????????????????# | | ????????????????????????????????????????# | | ????????????????????????????????????????# ####### | | ????????????????????????????????????????# #?????? | | ????????????????????????????????????????# #?????? | | ????????????????????????????????????????# #?????? | | ??????????????????????????????####??????# #?????? | | ??????????????????????????????# ???????+ #?????? | | ???????????????????#??????????# #?####??#!!#?????? | | ???????????????????# ??######## ### ####* #?????? | | ???????????????????# ?# # # # =|= [#?????? | | ??????????????????## ##"" # ]![/ #?????? | | ?????????????###### Y !!!!! #?????? | | ???????????? Y s !!!! ##????? | | ????????????? hBBh[ * #???? | | ???????????????#### ## # BB # ####???? | | ??????????????????# ## ; %### #??????? | | ??????????????????" C## #####??????? | | ?????????????????g" @ C####??????????? | | ?????????????????g" " #?????????????? | | ??????????????????" " #?????????????? | | ??????????????????# ## ## ###?????????????? | | ??????????????????# ?# ## #???????????????? | | ??????????????????# ? ??????????????? | | ??????????????????# ? ????????????? | | ??????????????????#? ???????????? | | ???????????????????? ##""""##########???????????? | | ????????????????????? ???????????????????????????? | | ???????????????????? ????????????????????????????? | | ?????????Y???????????????????????????????????????? | | ?????????????????????????????????????????????????? | | ?????????????????????????????????????????????????? | | ?????????????????????????????????????????????????? | | ?????????????????????????????????????????????????? | | ?????????????????????????????????????????????????? | | ?????????????????????????????????????????????????? | | ?????????????????????????????????????????????????? | | ?????????????????????????????????????????????????? | | ?????????????????????????????????????????????????? | | ?????????????????????????????????????????????????? | | ?????????????????????????????????????????????????? | | ?????????????????????????????????????????????????? | | ?????????????????????????????????????????????????? | +----------------------------------------------------+ Best States ------------- Heat Dissipation 48 Energy Generation 27 Energy Capacity 970 Matter Stores 300 Matter Capacity 300 Sight Range 23 Terrain Scan Density 10 Additional Mass Support 9 Armor Coverage 375 Thermal Conversion 30 Evasion (%) 60 Recoil Reduction 3 Matter Filtering 50 Offensive Hacking 44 Defensive Hacking 10 Relay Coupler Types 137 Relay Coupler Value 4 Item Schematics ----------------- Hcp. Storage Unit | -10/Materials | Hacked Lrn. Sensor Array | -7/Factory | Hacked Imp. Propulsion Shielding | -7/Factory | Scanalyzed Adv. Remote Datajack | -4/Factory | Scanalyzed Diametric Drive | -4/Factory | Scanalyzed Imp. Flight Unit | -4/Factory | Scanalyzed Field Propulsion Array | -4/Factory | Scanalyzed Robot Schematics ------------------ None Fabricated ------------ Imp. Propulsion Shielding | x2 | -5/Factory Alien Tech Used ----------------- None Achievements -------------- Dramatic Entrance Exterminator Challenges ------------ None Game ------ Seed ProcessingLinearArray Manual? 0 Play Time 04:17:18 Cumulative 98.7 hours Start 2021.11.18 @ 22:14:43 End 2021.11.19 @ 12:26:43 Sessions 3 Manual Loads 0 Difficulty Rogue Special Mode None Game No. 37 Rogue 37 Adventurer 0 Explorer 0 Win Type - Total 2 Types 2/0/0/0/0/0/0/0/0 Lore% 53 Gallery% 59 Achievement% 45 Wizard Run 0 Options --------- ASCII 0 Keyboard 1 Movement Numpad Keybinds 0 Fullscreen 1 Font 36/Smallcaps Map View 76x50 Tactical HUD 1 Map Filters NONE Filters NONE Steam 1 RUN: b4946c00-6091-4190-bcf5-9aaa6556c4ad